bitfinex/quotes_SOLUSD_20240716
["timestamp","ask_amount","ask_price","bid_price","bid_amount"]
[1721126558452,12.7576,156.84,156.81,6.3769]
[1721126558767,12.7576,156.84,156.77,15.9468]
[1721126559146,6.3767,156.82,156.77,22.3254]
[1721126559343,6.3767,156.82,156.77,15.9468]
[1721126559573,6.3776,156.8,156.75,6.3794]
[1721126560159,6.3782,156.79,156.73,15.9501]
[1721126560586,16.3774,156.81,156.75,6.3795]
[1721126560788,6.3776,156.8,156.75,6.3795]
[1721126560967,16.3772,156.81,156.75,6.3795]
[1721126562557,16.3772,156.81,156.73,15.9501]
[1721126562558,6.3775,156.8,156.74,6.3799]
[1721126563067,32.3876,156.79,156.73,22.3303]
[1721126564988,6.3785,156.78,156.73,15.9501]
[1721126565174,6.3785,156.78,156.73,22.3304]
[1721126565382,16.0096,156.79,156.75,15.9479]
[1721126565595,26.0096,156.79,156.75,22.3271]
[1721126565895,32.3876,156.79,156.73,6.3803]
[1721126566467,16.0096,156.79,156.72,15.9515]
[1721126566684,16.0096,156.79,156.74,6.3798]
[1721126567700,32.3876,156.79,156.72,22.3319]
[1721126567987,32.3876,156.79,156.73,6.3802]
[1721126568561,16.3792,156.76,156.7,6.3815]
[1721126568761,22.7887,156.76,156.7,6.3815]
[1721126568987,6.3796,156.75,156.69,6.3819]
[1721126569976,10.0,156.74,156.69,6.3819]
[1721126570195,16.38,156.74,156.68,15.955]
[1721126570496,16.38,156.74,156.69,6.382]
[1721126570668,6.3804,156.73,156.68,15.955]
[1721126570986,6.3804,156.73,156.67,6.3828]
[1721126571190,16.3809,156.72,156.66,6.3831]
[1721126572393,6.3812,156.71,156.66,6.3831]
[1721126572579,16.3808,156.72,156.66,6.3831]
[1721126572974,47.58,156.75,156.67,6.3828]
[1721126573194,16.3804,156.73,156.67,6.3827]
[1721126573492,16.3804,156.73,156.68,6.3823]
[1721126573493,10.0,156.73,156.68,6.3823]
[1721126573669,16.3804,156.73,156.67,6.3827]
[1721126573876,10.0,156.71,156.66,6.3832]
[1721126574273,10.0,156.73,156.65,15.9585]
[1721126575297,6.3812,156.72,156.66,6.3831]
[1721126575474,10.0,156.71,156.65,15.9585]
[1721126575811,25.7484,156.71,156.65,15.9585]
[1721126575980,32.1299,156.71,156.65,22.3421]
[1721126577397,6.3817,156.7,156.65,15.9585]
[1721126577604,10.0,156.68,156.62,6.3845]
[1721126577782,16.5684,156.68,156.62,6.3845]
[1721126578999,16.5684,156.68,156.63,6.3843]
[1721126579178,6.5684,156.68,156.64,6.3839]
[1721126579494,6.5684,156.68,156.59,31.9294]
[1721126579993,12.9512,156.68,156.62,6.3845]
[1721126580198,6.5684,156.68,156.63,6.3844]
[1721126580396,10.0,156.67,156.6,15.9639]
[1721126581179,10.0,156.67,156.6,22.3492]
[1721126581385,16.3836,156.65,156.6,15.9639]
[1721126581804,10.0,156.65,156.6,22.3495]
[1721126582326,6.3833,156.66,156.61,6.3852]
[1721126582511,6.3833,156.66,156.6,22.3494]
[1721126582512,10.0,156.65,156.6,22.3494]
[1721126582679,6.3833,156.66,156.6,22.3494]
[1721126583113,16.3837,156.65,156.6,15.9639]
[1721126584399,6.3848,156.63,156.57,6.3866]
[1721126584594,6.3848,156.63,156.56,15.9677]
[1721126584595,43.964,156.64,156.59,6.386]
[1721126584897,43.964,156.64,156.58,6.3864]
[1721126585685,16.3846,156.63,156.57,6.3868]
[1721126586003,6.3845,156.63,156.57,6.3868]
[1721126586334,6.3845,156.63,156.58,6.3864]
[1721126586805,44.1341,156.64,156.58,6.3864]
[1721126587197,0.17,156.65,156.58,15.9656]
[1721126587503,6.3836,156.65,156.59,6.3857]
[1721126587717,6.384,156.64,156.58,15.9656]
[1721126588078,6.3837,156.65,156.59,6.3859]
[1721126588504,16.3837,156.65,156.59,6.3859]
[1721126589177,10.0,156.65,156.59,6.3859]
[1721126589383,6.384,156.64,156.58,22.352]
[1721126589703,6.3844,156.63,156.58,15.9656]
[1721126589896,6.3837,156.65,156.6,6.3856]
[1721126590096,6.3833,156.66,156.61,6.3852]
[1721126590297,6.5684,156.68,156.63,6.3844]
[1721126590608,6.5684,156.68,156.59,1.2770589]
[1721126590609,12.9509,156.68,156.62,22.3463]
[1721126590813,31.7567,156.71,156.62,15.9616]
[1721126590989,69.3367,156.71,156.62,15.9616]
[1721126591604,6.3828,156.67,156.62,15.9616]
[1721126591790,10.0,156.69,156.59,15.9647]
[1721126592214,69.3367,156.71,156.61,15.9625]
[1721126592389,6.3819,156.7,156.63,6.3841]
[1721126592721,69.3367,156.71,156.63,6.3841]
[1721126592927,6.3824,156.68,156.63,6.3841]
[1721126593099,6.3829,156.67,156.61,15.9625]
[1721126593623,6.3833,156.66,156.61,15.9625]
[1721126593926,45.0,156.65,156.61,15.9625]
[1721126594719,45.0,156.65,156.62,6.3847]
[1721126594930,45.0,156.65,156.63,6.3842]
[1721126595714,45.0,156.65,156.63,6.3844]
[1721126596422,45.0,156.65,156.64,6.384]
[1721126597699,65.718,156.71,156.63,15.9605]
[1721126597915,21.7567,156.71,156.66,6.3829]
[1721126598311,28.1381,156.71,156.65,22.3419]
[1721126598712,10.0,156.7,156.62,15.9617]
[1721126598920,6.3821,156.69,156.63,6.3844]
[1721126599295,10.0,156.7,156.62,15.9617]
[1721126599506,10.0,156.68,156.61,6.3852]
[1721126599711,6.3833,156.66,156.6,6.3855]
[1721126599908,6.3837,156.65,156.59,15.9648]
[1721126600317,6.384,156.64,156.59,15.9648]
[1721126600727,6.3844,156.63,156.58,6.3863]
[1721126600926,21.4898,156.62,156.57,6.3868]
[1721126601121,27.8747,156.62,156.56,15.9676]
[1721126601311,6.3853,156.61,156.56,15.9676]
[1721126601512,45.0,156.6,156.56,15.9676]
[1721126602441,45.0,156.6,156.56,22.3548]
[1721126602614,45.0,156.6,156.57,6.3867]
[1721126602925,45.0,156.61,156.56,15.9676]
[1721126603127,51.3853,156.61,156.56,15.9676]
[1721126603426,45.0,156.61,156.53,16.3627579]
[1721126603805,6.5558,156.6,156.54,6.3878]
[1721126604005,51.3863,156.59,156.53,22.7511579]
[1721126604332,51.3863,156.59,156.54,6.388]
[1721126604822,51.3863,156.59,156.54,6.3881]
[1721126605122,45.0,156.59,156.54,6.3881]
[1721126605330,51.3861,156.59,156.53,22.7511579]
[1721126605504,16.3865,156.58,156.53,16.3627579]
[1721126605824,51.3869,156.57,156.53,0.3919579]
[1721126606524,45.0,156.57,156.53,0.3919579]
[1721126607031,45.0,156.57,156.54,22.3573]
[1721126607601,51.3865,156.58,156.53,6.7804579]
[1721126607808,51.3865,156.58,156.53,0.3919579]
[1721126608239,61.3865,156.58,156.53,0.3919579]
[1721126609410,6.3872,156.57,156.53,0.3919579]
[1721126609722,45.0,156.56,156.53,0.3919579]
[1721126610129,45.0,156.57,156.53,0.3919579]
[1721126610318,51.387,156.57,156.53,0.3919579]
[1721126610948,51.3869,156.57,156.53,0.3919579]
[1721126611127,45.0,156.57,156.53,0.3919579]
[1721126611633,51.387,156.57,156.53,0.3919579]
[1721126611817,45.0,156.57,156.53,6.7802579]
[1721126612344,51.3871,156.57,156.53,0.3919579]
[1721126612653,45.0,156.57,156.53,0.3919579]
[1721126613652,45.0,156.57,156.53,6.7803579]
[1721126614141,51.3869,156.57,156.53,0.3919579]
[1721126615351,6.3874,156.56,156.53,0.3919579]
[1721126615517,45.0,156.55,156.53,0.3919579]
[1721126615721,51.3869,156.57,156.53,0.3919579]
[1721126617151,45.0,156.57,156.53,16.3627579]
[1721126617515,21.4898,156.62,156.56,15.9681]
[1721126617747,21.4898,156.62,156.57,6.3868]
[1721126617957,21.4898,156.62,156.58,6.3863]
[1721126618245,16.3837,156.65,156.59,6.386]
[1721126618468,16.3837,156.65,156.6,6.3854]
[1721126618748,16.3837,156.65,156.58,15.9658]
[1721126618749,6.3841,156.64,156.58,22.3522]
[1721126618929,10.0,156.63,156.55,15.969]
[1721126619248,10.0,156.61,156.55,15.969]
[1721126619757,16.3855,156.61,156.55,22.3566]
[1721126619917,10.0,156.63,156.56,6.3873]
[1721126620118,10.0,156.64,156.55,15.969]
[1721126620329,6.3845,156.63,156.55,15.969]
[1721126620620,16.3849,156.62,156.56,6.3872]
[1721126620812,6.3845,156.63,156.57,6.3868]
[1721126621016,6.3845,156.63,156.57,22.3535]
[1721126621253,6.3853,156.61,156.55,6.3875]
[1721126621422,45.0,156.6,156.57,6.3867]
[1721126621622,55.0,156.64,156.57,6.3867]
[1721126621821,10.0,156.64,156.55,31.9378]
[1721126622021,10.0,156.64,156.56,15.968]
[1721126622236,37.75,156.65,156.56,15.968]
[1721126622237,6.3853,156.61,156.56,15.968]
[1721126622440,6.3857,156.6,156.53,17.64043095]
[1721126622617,6.3857,156.6,156.54,6.3878]
[1721126622821,6.3862,156.59,156.53,16.3630579]
[1721126623024,6.3862,156.59,156.53,22.7514579]
[1721126623224,45.0,156.58,156.54,6.388]
[1721126623529,45.0,156.59,156.53,17.64060297]
[1721126623735,45.0,156.59,156.54,6.3881]
[1721126623940,45.0,156.59,156.56,6.3872]
[1721126624526,45.0,156.59,156.55,6.3877]
[1721126624845,51.3858,156.6,156.54,6.388]
[1721126625225,6.3861,156.59,156.54,6.388]
[1721126625556,45.0,156.58,156.53,16.3630579]
[1721126625751,51.3857,156.6,156.54,6.3878]
[1721126625919,51.3857,156.6,156.53,24.02871318]
[1721126626123,51.3857,156.6,156.53,22.7511579]
[1721126626345,6.3861,156.59,156.53,22.7511579]
[1721126626632,45.0,156.58,156.53,16.3630579]
[1721126626819,6.3862,156.59,156.53,22.7512579]
[1721126627019,45.0,156.58,156.54,6.3881]
[1721126627929,51.3866,156.58,156.53,16.3630579]
[1721126628129,51.3866,156.58,156.53,22.7514579]
[1721126628744,45.0,156.58,156.53,22.7514579]
[1721126629758,45.0,156.59,156.53,22.7514579]
[1721126630135,6.3865,156.58,156.53,16.3630579]
[1721126630335,51.3872,156.57,156.53,0.3919579]
[1721126632256,16.3874,156.56,156.53,0.3919579]
[1721126632458,45.0,156.55,156.53,0.3919579]
[1721126634857,51.3879,156.55,156.53,0.3919579]
[1721126635170,45.0,156.55,156.53,0.3919579]
[1721126635966,51.3878,156.55,156.53,0.3919579]
[1721126636578,45.0,156.55,156.53,0.3919579]
[1721126637984,51.3878,156.55,156.53,0.3919579]
[1721126639672,45.0,156.55,156.53,0.3919579]
[1721126640655,51.3877,156.55,156.53,0.3919579]
[1721126641185,16.3881,156.54,156.53,0.3919579]
[1721126641352,61.3881,156.54,156.53,0.3919579]
[1721126641865,55.0,156.54,156.53,0.3919579]
[1721126642190,45.0,156.54,156.53,0.3919579]
[1721126643077,16.0323,156.59,156.53,6.7803579]
[1721126643290,16.386,156.6,156.54,6.388]
[1721126643578,6.3861,156.59,156.54,6.388]
[1721126643755,10.0,156.58,156.53,0.3919579]
[1721126643954,6.3873,156.56,156.53,0.3919579]
[1721126644585,6.387,156.57,156.53,0.3919579]
[1721126644875,10.0,156.6,156.53,0.3919579]
[1721126645086,6.3872,156.57,156.53,0.3919579]
[1721126645276,45.0,156.56,156.53,0.3919579]
[1721126645648,51.3873,156.56,156.53,0.3919579]
[1721126645873,6.3881,156.54,156.53,0.3919579]
[1721126646174,45.0,156.54,156.53,0.3919579]
[1721126647856,37.58,156.58,156.53,0.3919579]
[1721126648062,10.0,156.59,156.53,6.7800579]
[1721126648281,16.3863,156.59,156.53,6.7800579]
[1721126648481,16.3863,156.59,156.53,0.3919579]
[1721126648482,6.3866,156.58,156.53,0.3919579]
[1721126648796,6.3869,156.57,156.53,0.3919579]
[1721126648995,10.0,156.59,156.53,0.3919579]
[1721126649282,45.0,156.58,156.54,6.3881]
[1721126649666,45.0,156.58,156.53,6.7804579]
[1721126649883,45.0,156.58,156.54,6.3881]
[1721126650072,45.0,156.58,156.53,6.7803579]
[1721126650892,51.3865,156.58,156.53,6.7803579]
[1721126651101,47.58,156.61,156.54,15.9702]
[1721126651266,6.3855,156.61,156.55,6.3876]
[1721126651466,6.3857,156.6,156.54,22.3582]
[1721126651666,10.0,156.59,156.53,0.3919579]
[1721126651904,6.3869,156.57,156.53,0.3919579]
[1721126652386,47.58,156.61,156.53,6.7804579]
[1721126652387,6.3866,156.58,156.53,6.7804579]
[1721126652586,45.0,156.57,156.53,6.7804579]
[1721126654214,51.3871,156.57,156.53,0.3919579]
[1721126654898,45.0,156.57,156.53,0.3919579]
[1721126655575,51.387,156.57,156.53,0.3919579]
[1721126655984,6.3874,156.56,156.53,0.3919579]
[1721126656184,45.0,156.55,156.53,0.3919579]
[1721126657618,55.0,156.55,156.53,0.3919579]
[1721126657804,6.3881,156.54,156.53,0.3919579]
[1721126658125,51.3881,156.54,156.53,0.3919579]
[1721126659010,51.5581,156.54,156.53,0.3919579]
[1721126659303,51.7281,156.54,156.53,0.3919579]
[1721126662706,6.3881,156.54,156.53,0.3919579]
[1721126662890,6.3874,156.56,156.53,0.3919579]
[1721126663686,6.3878,156.55,156.53,0.3919579]
[1721126663904,51.3878,156.55,156.53,0.3919579]
[1721126664109,6.3881,156.54,156.53,0.3919579]
[1721126664313,51.3881,156.54,156.53,0.3919579]
[1721126665885,51.7281,156.54,156.53,0.3919579]
[1721126666090,89.3081,156.54,156.53,0.3919579]
[1721126667323,89.3081,156.54,156.44,15.1324]
[1721126667324,6.3902,156.49,156.44,15.1324]
[1721126667694,6.3906,156.48,156.44,15.1324]
[1721126668086,6.3914,156.46,156.41,6.3932]
[1721126668289,0.17,156.5,156.39,16.098]
[1721126668290,10.0,156.47,156.39,16.098]
[1721126668602,10.0,156.47,156.4,22.3776]
[1721126668603,6.3914,156.46,156.4,22.3776]
[1721126668798,6.3914,156.46,156.41,6.3934]
[1721126669198,10.0,156.47,156.39,16.098]
[1721126669524,45.0,156.45,156.39,16.098]
[1721126669689,6.3922,156.44,156.39,6.3942]
[1721126669884,6.3922,156.44,156.38,6.3945]
[1721126670089,45.0,156.43,156.38,6.3945]
[1721126670415,45.0,156.43,156.37,16.8312959]
[1721126670416,55.0,156.43,156.37,0.8439959]
[1721126670606,6.3931,156.42,156.37,0.8439959]
[1721126670785,45.0,156.41,156.37,0.8439959]
[1721126670985,45.0,156.41,156.37,7.2387959]
[1721126671211,45.0,156.42,156.37,7.2385959]
[1721126672319,45.0,156.42,156.38,6.3946]
[1721126672616,61.3926,156.43,156.38,6.3946]
[1721126672918,61.3926,156.43,156.37,0.8439959]
[1721126672919,45.0,156.43,156.37,0.8439959]
[1721126673306,45.0,156.43,156.38,6.3942]
[1721126673514,45.0,156.44,156.38,6.3942]
[1721126673709,10.0,156.43,156.37,7.2389959]
[1721126673912,51.3931,156.42,156.37,0.8439959]
[1721126674220,51.3931,156.42,156.37,7.2389959]
[1721126674731,51.3931,156.42,156.37,0.8439959]
[1721126674893,45.0,156.42,156.37,7.2388959]
[1721126675293,10.0,156.39,156.37,0.8439959]
[1721126675513,16.3939,156.4,156.37,0.8439959]
[1721126675738,45.0,156.39,156.37,0.8439959]
[1721126676302,45.0,156.4,156.37,0.8439959]
[1721126676494,45.0,156.41,156.37,0.8439959]
[1721126676696,16.5638,156.4,156.37,0.8439959]
[1721126676918,45.0,156.39,156.37,0.8439959]
[1721126677123,37.58,156.43,156.37,0.8439959]
[1721126677299,62.6461,156.46,156.39,6.3939]
[1721126677500,62.6461,156.46,156.37,18.10983233]
[1721126677704,6.3926,156.43,156.37,24.50453233]
[1721126677908,6.3926,156.43,156.37,23.2256959]
[1721126678135,6.3917,156.46,156.4,6.3935]
[1721126678295,43.9709,156.48,156.41,17.26182671]
[1721126678495,26.2725,156.5,156.41,17.26182671]
[1721126678800,6.3907,156.48,156.42,6.3929]
[1721126678995,32.6626,156.5,156.43,6.3926]
[1721126679240,6.3905,156.49,156.43,6.3926]
[1721126679534,6.3906,156.48,156.42,6.3929]
[1721126680006,45.0,156.47,156.42,6.3929]
[1721126680223,45.0,156.47,156.43,6.3925]
[1721126680423,10.0,156.52,156.44,1.2784066]
[1721126680633,6.3893,156.51,156.45,15.9789]
[1721126681024,6.3898,156.5,156.45,1.27822885]
[1721126681225,6.3898,156.5,156.44,22.3987]
[1721126681538,6.3902,156.49,156.44,16.0068]
[1721126681737,6.391,156.47,156.44,16.0068]
[1721126681931,45.0,156.46,156.42,17.26063275]
[1721126682134,45.0,156.46,156.4,22.6127]
[1721126682135,51.3915,156.46,156.4,22.6127]
[1721126682430,45.0,156.46,156.41,6.3934]
[1721126682629,51.3917,156.46,156.4,22.6127]
[1721126682830,51.3917,156.46,156.4,29.0064]
[1721126683237,6.3918,156.45,156.4,22.6127]
[1721126683547,45.0,156.44,156.4,22.6127]
[1721126683850,45.0,156.44,156.4,15.9723]
[1721126683851,51.3922,156.44,156.4,15.9723]
[1721126684060,45.0,156.44,156.4,15.9723]
[1721126684258,45.0,156.44,156.41,15.9828]
[1721126684558,10.0,156.49,156.41,15.9828]
[1721126684863,6.391,156.47,156.42,6.3929]
[1721126685160,16.391,156.47,156.41,22.3761]
[1721126685348,6.3916,156.46,156.41,15.9828]
[1721126685555,6.3916,156.46,156.41,22.3761]
[1721126685751,45.0,156.45,156.41,22.3761]
[1721126685929,51.3914,156.46,156.41,22.3761]
[1721126686129,51.3914,156.46,156.41,15.9828]
[1721126686828,51.3914,156.46,156.41,22.3762]
[1721126687027,45.0,156.46,156.41,22.3762]
[1721126689749,51.3914,156.46,156.41,22.3762]
[1721126690053,51.3914,156.46,156.41,15.9828]
[1721126691488,51.3914,156.46,156.41,22.3762]
[1721126691840,51.3914,156.46,156.41,15.9828]
[1721126692159,51.3914,156.46,156.4,15.9723]
[1721126692160,16.3918,156.45,156.4,15.9723]
[1721126692336,45.0,156.44,156.39,6.3941]
[1721126692742,51.3922,156.44,156.39,6.3941]
[1721126693145,45.0,156.44,156.39,6.3941]
[1721126694947,51.3922,156.44,156.38,22.3807]
[1721126695346,45.0,156.44,156.38,15.9861]
[1721126695541,45.0,156.45,156.41,6.3934]
[1721126695747,45.0,156.46,156.41,6.3934]
[1721126696355,51.3914,156.46,156.41,6.3934]
[1721126696855,45.0,156.46,156.43,6.3925]
[1721126697048,10.0,156.47,156.42,22.375]
[1721126697453,10.0,156.47,156.43,6.3926]
[1721126697767,10.0,156.47,156.42,22.375]
[1721126698058,6.3914,156.46,156.42,15.9821]
[1721126698272,16.391,156.47,156.42,15.9821]
[1721126698766,6.3916,156.46,156.39,15.9854]
[1721126699148,6.3916,156.46,156.4,1.27866285]
[1721126699346,45.0,156.45,156.4,1.27866285]
[1721126699736,45.0,156.46,156.4,1.27866285]
[1721126699932,45.0,156.46,156.42,6.3929]
[1721126700454,45.0,156.47,156.42,6.3929]
[1721126700658,6.3911,156.47,156.42,6.3929]
[1721126700858,45.0,156.46,156.42,6.3929]
[1721126701045,45.0,156.46,156.41,22.3765]
[1721126701452,51.3914,156.46,156.41,22.3765]
[1721126701655,45.0,156.46,156.41,22.3765]
[1721126701876,45.0,156.46,156.42,6.3929]
[1721126702163,51.3917,156.46,156.41,15.9832]
[1721126702668,45.0,156.46,156.41,15.9832]
[1721126702964,26.4783,156.51,156.43,15.9808]
[1721126703258,10.0,156.53,156.44,16.3457]
[1721126703462,6.3897,156.51,156.45,23.64896231]
[1721126703667,6.3898,156.5,156.45,22.3708]
[1721126704666,6.3903,156.49,156.44,16.3457]
[1721126705046,6.3906,156.48,156.44,16.3457]
[1721126705242,45.0,156.47,156.44,16.3457]
[1721126705441,45.0,156.48,156.44,16.3457]
[1721126705659,45.0,156.48,156.45,1.27829184]
[1721126705859,45.0,156.48,156.44,33.6041751]
[1721126706056,45.0,156.48,156.46,6.3911]
[1721126706250,6.64555502,156.55,156.47,1.27816162]
[1721126706459,6.388,156.55,156.49,6.3901]
[1721126706642,10.0,156.58,156.45,19.22]
[1721126706643,6.64398049,156.58,156.45,19.22]
[1721126706958,277.19153344,156.61,156.52,16.4348]
[1721126707163,6.3866,156.58,156.53,15.9708]
[1721126707469,6.3865,156.58,156.53,15.9708]
[1721126707966,6.3865,156.58,156.53,22.3592]
[1721126708351,258.1,156.61,156.55,6.3874]
[1721126708558,10.0,156.65,156.58,6.3864]
[1721126708942,10.0,156.65,156.59,6.3859]
[1721126709663,6.3829,156.67,156.6,6.3855]
[1721126710370,10.0,156.69,156.62,15.9616]
[1721126710371,6.402,156.69,156.62,15.9616]
[1721126710546,10.0,156.71,156.62,15.9616]
[1721126710746,10.0,156.71,156.6,6.0741]
[1721126710747,10.0,156.66,156.6,6.0741]
[1721126710948,6.3836,156.65,156.6,6.0741]
[1721126711139,6.3849,156.62,156.56,28.7465]
[1721126711553,6.3844,156.63,156.57,6.3869]
[1721126711773,45.0,156.62,156.58,6.3864]
[1721126711967,45.0,156.63,156.58,15.9661]
[1721126712139,45.0,156.63,156.6,6.3855]
[1721126712346,45.0,156.63,156.59,6.386]
[1721126712646,6.3847,156.63,156.58,15.9661]
[1721126712967,45.0,156.62,156.58,22.3525]
[1721126713158,51.3844,156.63,156.58,22.3525]
[1721126713367,10.0,156.62,156.56,22.3596]
[1721126713663,45.0,156.61,156.53,6.3882]
[1721126713843,6.3865,156.58,156.52,22.3608]
[1721126714048,45.17,156.61,156.51,22.3018]
[1721126714049,45.0,156.57,156.51,22.3018]
[1721126714456,45.0,156.58,156.51,22.3018]
[1721126714864,45.0,156.58,156.53,6.3881]
[1721126715061,6.387,156.57,156.51,28.6911]
[1721126715375,51.3873,156.56,156.51,22.3018]
[1721126715574,45.0,156.56,156.51,28.6911]
[1721126715769,45.0,156.56,156.52,6.3889]
[1721126715951,45.0,156.57,156.52,6.3889]
[1721126716271,45.0,156.57,156.53,6.3884]
[1721126716574,45.0,156.58,156.53,6.3884]
[1721126716975,55.0,156.58,156.52,15.9716]
[1721126717179,45.0,156.58,156.52,15.9716]
[1721126717349,45.0,156.59,156.56,6.3869]
[1721126717556,45.0,156.6,156.54,15.9696]
[1721126717878,61.3857,156.6,156.54,15.9696]
[1721126718087,45.0,156.6,156.54,15.9696]
[1721126718244,45.0,156.6,156.56,6.3871]
[1721126718566,6.3847,156.63,156.57,6.3868]
[1721126718771,43.964,156.64,156.58,6.3862]
[1721126718982,6.3837,156.65,156.59,6.3859]
[1721126719265,16.3833,156.66,156.58,15.9657]
[1721126719443,10.0,156.64,156.58,15.9657]
[1721126719649,16.3841,156.64,156.58,22.3518]
[1721126719876,6.3841,156.64,156.58,22.3518]
[1721126720250,10.0,156.68,156.59,6.386]
[1721126720452,6.3839,156.65,156.6,6.3856]
[1721126720873,10.0,156.62,156.55,6.3874]
[1721126721078,10.0,156.59,156.52,6.3888]
[1721126721543,45.0,156.58,156.52,6.3888]
[1721126721948,51.3866,156.58,156.52,6.3888]
[1721126722277,45.0,156.58,156.53,15.9708]
[1721126722575,45.0,156.58,156.51,54.2476]
[1721126722775,45.0,156.58,156.55,15.9688]
[1721126722954,45.0,156.58,156.56,6.3869]
[1721126723157,45.0,156.58,156.51,54.2476]
[1721126723158,6.3844,156.64,156.57,15.9666]
[1721126723471,32.1513,156.67,156.6,6.3856]
[1721126723675,10.0,156.64,156.57,15.9666]
[1721126723971,10.0,156.66,156.57,15.9666]
[1721126724173,10.0,156.66,156.59,6.3859]
[1721126724848,22.1513,156.67,156.57,15.9666]
[1721126724849,6.385,156.62,156.57,15.9666]
[1721126725272,10.0,156.64,156.57,15.9666]
[1721126725671,6.3852,156.62,156.57,15.9666]
[1721126725991,51.3854,156.61,156.55,6.3876]
[1721126726168,51.3854,156.61,156.56,6.3873]
[1721126726889,6.3857,156.6,156.54,15.9699]
[1721126727188,45.0,156.59,156.54,22.3579]
[1721126727374,45.0,156.59,156.55,6.3877]
[1721126727569,45.0,156.59,156.56,15.9674]
[1721126727770,45.0,156.59,156.58,6.3865]
[1721126727971,45.0,156.59,156.57,6.3865]
[1721126728480,45.0,156.59,156.58,6.3865]
[1721126728653,6.3838,156.65,156.59,15.9652]
[1721126728857,16.3836,156.65,156.59,22.3511]
[1721126729059,6.3841,156.64,156.59,15.9652]
[1721126729276,6.3845,156.63,156.58,6.3863]
[1721126729782,6.3841,156.64,156.58,6.3863]
[1721126730254,45.0,156.63,156.6,6.3855]
[1721126730458,45.0,156.64,156.6,6.3855]
[1721126730783,32.1513,156.67,156.6,6.3855]
[1721126731079,6.5535,156.66,156.6,6.3855]
[1721126731379,6.3835,156.66,156.61,6.3852]
[1721126731583,16.3829,156.67,156.61,6.3852]
[1721126731785,6.3834,156.66,156.61,6.3852]
[1721126731962,45.0,156.65,156.61,6.3852]
[1721126732587,45.0,156.65,156.6,22.3494]
[1721126733277,51.3836,156.65,156.6,22.3494]
[1721126733476,51.3836,156.65,156.6,15.9638]
[1721126733664,6.384,156.64,156.6,15.9638]
[1721126733866,45.0,156.63,156.6,15.9638]
[1721126734984,45.0,156.64,156.6,15.9638]
[1721126737375,45.0,156.64,156.61,6.3851]
[1721126737765,45.0,156.64,156.6,22.3494]
[1721126737969,51.3836,156.65,156.6,22.3494]
[1721126738270,45.0,156.65,156.61,6.3851]
[1721126738468,45.0,156.65,156.62,6.3847]
[1721126738669,45.0,156.66,156.62,6.3847]
[1721126738888,45.0,156.67,156.63,6.3843]
[1721126739388,16.3819,156.7,156.64,6.3839]
[1721126740565,6.3825,156.68,156.63,6.3844]
[1721126740764,45.0,156.67,156.62,22.3465]
[1721126742689,45.0,156.67,156.63,6.3844]
[1721126743674,10.0,156.69,156.64,6.3837]
[1721126743882,54.2477,156.71,156.66,6.3831]
[1721126743883,16.3813,156.71,156.66,6.3831]
[1721126744085,16.3813,156.71,156.67,6.3828]
[1721126744086,10.0,156.71,156.67,6.3828]